{"text_format":"1","workbook":"xlsx","n_sheets":17,"sheets":["Auswertungsraster","Beobachtungsbogen","LP 1","LP 2","LP 3","LP 4","LP 5","LP 6","LP 7","LP 8","LP 9","LP 10","LP 11","LP 12","LP 13","LP 14","LP 15"],"not_rendered":{"charts":0,"images":0,"macros":1,"external_links":0,"defined_names":22,"comments":0,"pivot_tables":0},"unopened":[],"bounds":{"document_bytes":16777216,"sheet_cells":100000,"rows_first":2000,"rows_last":500,"rows_between":2000,"halvings":0,"cell_chars":16384,"cell_head_chars":4096},"cells_cut":0,"cells_raw":0,"read":"whole","date_system":"1900"}

{"sheet":"Auswertungsraster","index":0,"n_rows":16,"n_cols":23,"rows_kept":16,"cut":false,"hidden":false,"merged":[[1,8,1,22],[2,0,3,0],[2,8,2,22],[2,1,3,1],[2,2,3,2],[2,3,3,3],[2,4,3,4],[2,5,3,5],[2,6,3,6],[2,7,3,7]]}
["Auswertungsraster"]
["Gesamtbewertung "," +++"," ++"," +"," -"," --"," ---"," ?","Auswertung"]
["Bilanzierende Beurteilung Unterricht",{"$f":"SUM('LP 1'!B15,'LP 2'!B15,'LP 3'!B15,'LP 4'!B15,'LP 5'!B15,'LP 6'!B15,'LP 7'!B15,'LP 8'!B15,'LP 9'!B15,'LP 10'!B15,'LP 11'!B15,'LP 12'!B15,'LP 13'!B15,'LP 14'!B15,'LP 15'!B15,)","v":0},{"$f":"SUM('LP 1'!C15,'LP 2'!C15,'LP 3'!C15,'LP 4'!C15,'LP 5'!C15,'LP 6'!C15,'LP 7'!C15,'LP 8'!C15,'LP 9'!C15,'LP 10'!C15,'LP 11'!C15,'LP 12'!C15,'LP 13'!C15,'LP 14'!C15,'LP 15'!C15,)","v":0},{"$f":"SUM('LP 1'!D15,'LP 2'!D15,'LP 3'!D15,'LP 4'!D15,'LP 5'!D15,'LP 6'!D15,'LP 7'!D15,'LP 8'!D15,'LP 9'!D15,'LP 10'!D15,'LP 11'!D15,'LP 12'!D15,'LP 13'!D15,'LP 14'!D15,'LP 15'!D15,)","v":0},{"$f":"SUM('LP 1'!E15,'LP 2'!E15,'LP 3'!E15,'LP 4'!E15,'LP 5'!E15,'LP 6'!E15,'LP 7'!E15,'LP 8'!E15,'LP 9'!E15,'LP 10'!E15,'LP 11'!E15,'LP 12'!E15,'LP 13'!E15,'LP 14'!E15,'LP 15'!E15,)","v":0},{"$f":"SUM('LP 1'!F15,'LP 2'!F15,'LP 3'!F15,'LP 4'!F15,'LP 5'!F15,'LP 6'!F15,'LP 7'!F15,'LP 8'!F15,'LP 9'!F15,'LP 10'!F15,'LP 11'!F15,'LP 12'!F15,'LP 13'!F15,'LP 14'!F15,'LP 15'!F15,)","v":0},{"$f":"SUM('LP 1'!G15,'LP 2'!G15,'LP 3'!G15,'LP 4'!G15,'LP 5'!G15,'LP 6'!G15,'LP 7'!G15,'LP 8'!G15,'LP 9'!G15,'LP 10'!G15,'LP 11'!G15,'LP 12'!G15,'LP 13'!G15,'LP 14'!G15,'LP 15'!G15,)","v":0},{"$f":"SUM('LP 1'!H15,'LP 2'!H15,'LP 3'!H15,'LP 4'!H15,'LP 5'!H15,'LP 6'!H15,'LP 7'!H15,'LP 8'!H15,'LP 9'!H15,'LP 10'!H15,'LP 11'!H15,'LP 12'!H15,'LP 13'!H15,'LP 14'!H15,'LP 15'!H15,)","v":0}]
[null,null,null,null,null,null,null,null,{"$f":"'LP 1'!I15","v":0},{"$f":"'LP 2'!I15","v":0},{"$f":"'LP 3'!I15","v":0},{"$f":"'LP 4'!I15","v":0},{"$f":"'LP 5'!I15","v":0},{"$f":"'LP 6'!I15","v":0},{"$f":"'LP 7'!I15","v":0},{"$f":"'LP 8'!I15","v":0},{"$f":"'LP 9'!I15","v":0},{"$f":"'LP 10'!I15","v":0},{"$f":"'LP 11'!I15","v":0},{"$f":"'LP 12'!I15","v":0},{"$f":"'LP 13'!I15","v":0},{"$f":"'LP 14'!I15","v":0},{"$f":"'LP 15'!I15","v":0}]
["Indikatoren","ja","teils","nein","?",null,null,null,{"$f":"'LP 1'!A1","v":"LP 1"},{"$f":"'LP 2'!A1","v":"LP 2"},{"$f":"'LP 3'!A1","v":"LP 3"},{"$f":"'LP 4'!A1","v":"LP 4"},{"$f":"'LP 5'!A1","v":"LP 5"},{"$f":"'LP 6'!A1","v":"LP 6"},{"$f":"'LP 7'!A1","v":"LP 7"},{"$f":"'LP 8'!A1","v":"LP 8"},{"$f":"'LP 9'!A1","v":"LP 9"},{"$f":"'LP 10'!A1","v":"LP 10"},{"$f":"'LP 11'!A1","v":"LP 11"},{"$f":"'LP 12'!A1","v":"LP 12"},{"$f":"'LP 13'!A1","v":"LP 13"},{"$f":"'LP 14'!A1","v":"LP 14"},{"$f":"'LP 15'!A1","v":"LP 15"}]
["Die Lehrperson motiviert die Schülerinnen und Schüler für die Aufgaben/Fragen/Problemstellungen. ",{"$f":"SUM('LP 1'!B3,'LP 2'!B3,'LP 3'!B3,'LP 4'!B3,'LP 5'!B3,'LP 6'!B3,'LP 7'!B3,'LP 8'!B3,'LP 9'!B3,'LP 10'!B3,'LP 11'!B3,'LP 12'!B3,'LP 13'!B3,'LP 14'!B3,'LP 15'!B3,)","v":0},{"$f":"SUM('LP 1'!C3,'LP 2'!C3,'LP 3'!C3,'LP 4'!C3,'LP 5'!C3,'LP 6'!C3,'LP 7'!C3,'LP 8'!C3,'LP 9'!C3,'LP 10'!C3,'LP 11'!C3,'LP 12'!C3,'LP 13'!C3,'LP 14'!C3,'LP 15'!C3,)","v":0},{"$f":"SUM('LP 1'!D3,'LP 2'!D3,'LP 3'!D3,'LP 4'!D3,'LP 5'!D3,'LP 6'!D3,'LP 7'!D3,'LP 8'!D3,'LP 9'!D3,'LP 10'!D3,'LP 11'!D3,'LP 12'!D3,'LP 13'!D3,'LP 14'!D3,'LP 15'!D3,)","v":0},{"$f":"SUM('LP 1'!E3,'LP 2'!E3,'LP 3'!E3,'LP 4'!E3,'LP 5'!E3,'LP 6'!E3,'LP 7'!E3,'LP 8'!E3,'LP 9'!E3,'LP 10'!E3,'LP 11'!E3,'LP 12'!E3,'LP 13'!E3,'LP 14'!E3,'LP 15'!E3,)","v":0},null,null,null,{"$f":"'LP 1'!F3","v":0},{"$f":"'LP 2'!F3","v":0},{"$f":"'LP 3'!F3","v":0},{"$f":"'LP 4'!F3","v":0},{"$f":"'LP 5'!F3","v":0},{"$f":"'LP 6'!F3","v":0},{"$f":"'LP 7'!F3","v":0},{"$f":"'LP 8'!F3","v":0},{"$f":"'LP 9'!F3","v":0},{"$f":"'LP 10'!F3","v":0},{"$f":"'LP 11'!F3","v":0},{"$f":"'LP 12'!F3","v":0},{"$f":"'LP 13'!F3","v":0},{"$f":"'LP 14'!F3","v":0},{"$f":"'LP 15'!F3","v":0}]
["Die Lehrperson schafft herausfordernde Problemstellungen, die Schülerinnen und Schüler zum Denken und Handeln anregen.",{"$f":"SUM('LP 1'!B4,'LP 2'!B4,'LP 3'!B4,'LP 4'!B4,'LP 5'!B4,'LP 6'!B4,'LP 7'!B4,'LP 8'!B4,'LP 9'!B4,'LP 10'!B4,'LP 11'!B4,'LP 12'!B4,'LP 13'!B4,'LP 14'!B4,'LP 15'!B4,)","v":0},{"$f":"SUM('LP 1'!C4,'LP 2'!C4,'LP 3'!C4,'LP 4'!C4,'LP 5'!C4,'LP 6'!C4,'LP 7'!C4,'LP 8'!C4,'LP 9'!C4,'LP 10'!C4,'LP 11'!C4,'LP 12'!C4,'LP 13'!C4,'LP 14'!C4,'LP 15'!C4,)","v":0},{"$f":"SUM('LP 1'!D4,'LP 2'!D4,'LP 3'!D4,'LP 4'!D4,'LP 5'!D4,'LP 6'!D4,'LP 7'!D4,'LP 8'!D4,'LP 9'!D4,'LP 10'!D4,'LP 11'!D4,'LP 12'!D4,'LP 13'!D4,'LP 14'!D4,'LP 15'!D4,)","v":0},{"$f":"SUM('LP 1'!E4,'LP 2'!E4,'LP 3'!E4,'LP 4'!E4,'LP 5'!E4,'LP 6'!E4,'LP 7'!E4,'LP 8'!E4,'LP 9'!E4,'LP 10'!E4,'LP 11'!E4,'LP 12'!E4,'LP 13'!E4,'LP 14'!E4,'LP 15'!E4,)","v":0},null,null,null,{"$f":"'LP 1'!F4","v":0},{"$f":"'LP 2'!F4","v":0},{"$f":"'LP 3'!F4","v":0},{"$f":"'LP 4'!F4","v":0},{"$f":"'LP 5'!F4","v":0},{"$f":"'LP 6'!F4","v":0},{"$f":"'LP 7'!F4","v":0},{"$f":"'LP 8'!F4","v":0},{"$f":"'LP 9'!F4","v":0},{"$f":"'LP 10'!F4","v":0},{"$f":"'LP 11'!F4","v":0},{"$f":"'LP 12'!F4","v":0},{"$f":"'LP 13'!F4","v":0},{"$f":"'LP 14'!F4","v":0},{"$f":"'LP 15'!F4","v":0}]
["Die Lehrperson knüpft im Unterricht an das Vorwissen der Schülerinnen und Schüler an.",{"$f":"SUM('LP 1'!B5,'LP 2'!B5,'LP 3'!B5,'LP 4'!B5,'LP 5'!B5,'LP 6'!B5,'LP 7'!B5,'LP 8'!B5,'LP 9'!B5,'LP 10'!B5,'LP 11'!B5,'LP 12'!B5,'LP 13'!B5,'LP 14'!B5,'LP 15'!B5,)","v":0},{"$f":"SUM('LP 1'!C5,'LP 2'!C5,'LP 3'!C5,'LP 4'!C5,'LP 5'!C5,'LP 6'!C5,'LP 7'!C5,'LP 8'!C5,'LP 9'!C5,'LP 10'!C5,'LP 11'!C5,'LP 12'!C5,'LP 13'!C5,'LP 14'!C5,'LP 15'!C5,)","v":0},{"$f":"SUM('LP 1'!D5,'LP 2'!D5,'LP 3'!D5,'LP 4'!D5,'LP 5'!D5,'LP 6'!D5,'LP 7'!D5,'LP 8'!D5,'LP 9'!D5,'LP 10'!D5,'LP 11'!D5,'LP 12'!D5,'LP 13'!D5,'LP 14'!D5,'LP 15'!D5,)","v":0},{"$f":"SUM('LP 1'!E5,'LP 2'!E5,'LP 3'!E5,'LP 4'!E5,'LP 5'!E5,'LP 6'!E5,'LP 7'!E5,'LP 8'!E5,'LP 9'!E5,'LP 10'!E5,'LP 11'!E5,'LP 12'!E5,'LP 13'!E5,'LP 14'!E5,'LP 15'!E5,)","v":0},null,null,null,{"$f":"'LP 1'!F5","v":0},{"$f":"'LP 2'!F5","v":0},{"$f":"'LP 3'!F5","v":0},{"$f":"'LP 4'!F5","v":0},{"$f":"'LP 5'!F5","v":0},{"$f":"'LP 6'!F5","v":0},{"$f":"'LP 7'!F5","v":0},{"$f":"'LP 8'!F5","v":0},{"$f":"'LP 9'!F5","v":0},{"$f":"'LP 10'!F5","v":0},{"$f":"'LP 11'!F5","v":0},{"$f":"'LP 12'!F5","v":0},{"$f":"'LP 13'!F5","v":0},{"$f":"'LP 14'!F5","v":0},{"$f":"'LP 15'!F5","v":0}]
["Die Lehrperson schafft Situationen, die den Lerndialog unter Schülerinnen und Schülern anregen und lassen Raum für das Lernen von- und miteinander.",{"$f":"SUM('LP 1'!B6,'LP 2'!B6,'LP 3'!B6,'LP 4'!B6,'LP 5'!B6,'LP 6'!B6,'LP 7'!B6,'LP 8'!B6,'LP 9'!B6,'LP 10'!B6,'LP 11'!B6,'LP 12'!B6,'LP 13'!B6,'LP 14'!B6,'LP 15'!B6,)","v":0},{"$f":"SUM('LP 1'!C6,'LP 2'!C6,'LP 3'!C6,'LP 4'!C6,'LP 5'!C6,'LP 6'!C6,'LP 7'!C6,'LP 8'!C6,'LP 9'!C6,'LP 10'!C6,'LP 11'!C6,'LP 12'!C6,'LP 13'!C6,'LP 14'!C6,'LP 15'!C6,)","v":0},{"$f":"SUM('LP 1'!D6,'LP 2'!D6,'LP 3'!D6,'LP 4'!D6,'LP 5'!D6,'LP 6'!D6,'LP 7'!D6,'LP 8'!D6,'LP 9'!D6,'LP 10'!D6,'LP 11'!D6,'LP 12'!D6,'LP 13'!D6,'LP 14'!D6,'LP 15'!D6,)","v":0},{"$f":"SUM('LP 1'!E6,'LP 2'!E6,'LP 3'!E6,'LP 4'!E6,'LP 5'!E6,'LP 6'!E6,'LP 7'!E6,'LP 8'!E6,'LP 9'!E6,'LP 10'!E6,'LP 11'!E6,'LP 12'!E6,'LP 13'!E6,'LP 14'!E6,'LP 15'!E6,)","v":0},null,null,null,{"$f":"'LP 1'!F6","v":0},{"$f":"'LP 2'!F6","v":0},{"$f":"'LP 3'!F6","v":0},{"$f":"'LP 4'!F6","v":0},{"$f":"'LP 5'!F6","v":0},{"$f":"'LP 6'!F6","v":0},{"$f":"'LP 7'!F6","v":0},{"$f":"'LP 8'!F6","v":0},{"$f":"'LP 9'!F6","v":0},{"$f":"'LP 10'!F6","v":0},{"$f":"'LP 11'!F6","v":0},{"$f":"'LP 12'!F6","v":0},{"$f":"'LP 13'!F6","v":0},{"$f":"'LP 14'!F6","v":0},{"$f":"'LP 15'!F6","v":0}]
["Die Lehrperson gibt den Schülerinnen und Schülern die Kompetenz-/Lernziele rechtzeitig, schriftlich und verständlich bekannt.",{"$f":"SUM('LP 1'!B7,'LP 2'!B7,'LP 3'!B7,'LP 4'!B7,'LP 5'!B7,'LP 6'!B7,'LP 7'!B7,'LP 8'!B7,'LP 9'!B7,'LP 10'!B7,'LP 11'!B7,'LP 12'!B7,'LP 13'!B7,'LP 14'!B7,'LP 15'!B7,)","v":0},{"$f":"SUM('LP 1'!C7,'LP 2'!C7,'LP 3'!C7,'LP 4'!C7,'LP 5'!C7,'LP 6'!C7,'LP 7'!C7,'LP 8'!C7,'LP 9'!C7,'LP 10'!C7,'LP 11'!C7,'LP 12'!C7,'LP 13'!C7,'LP 14'!C7,'LP 15'!C7,)","v":0},{"$f":"SUM('LP 1'!D7,'LP 2'!D7,'LP 3'!D7,'LP 4'!D7,'LP 5'!D7,'LP 6'!D7,'LP 7'!D7,'LP 8'!D7,'LP 9'!D7,'LP 10'!D7,'LP 11'!D7,'LP 12'!D7,'LP 13'!D7,'LP 14'!D7,'LP 15'!D7,)","v":0},{"$f":"SUM('LP 1'!E7,'LP 2'!E7,'LP 3'!E7,'LP 4'!E7,'LP 5'!E7,'LP 6'!E7,'LP 7'!E7,'LP 8'!E7,'LP 9'!E7,'LP 10'!E7,'LP 11'!E7,'LP 12'!E7,'LP 13'!E7,'LP 14'!E7,'LP 15'!E7,)","v":0},null,null,null,{"$f":"'LP 1'!F7","v":0},{"$f":"'LP 2'!F7","v":0},{"$f":"'LP 3'!F7","v":0},{"$f":"'LP 4'!F7","v":0},{"$f":"'LP 5'!F7","v":0},{"$f":"'LP 6'!F7","v":0},{"$f":"'LP 7'!F7","v":0},{"$f":"'LP 8'!F7","v":0},{"$f":"'LP 9'!F7","v":0},{"$f":"'LP 10'!F7","v":0},{"$f":"'LP 11'!F7","v":0},{"$f":"'LP 12'!F7","v":0},{"$f":"'LP 13'!F7","v":0},{"$f":"'LP 14'!F7","v":0},{"$f":"'LP 15'!F7","v":0}]
["Die Lehrperson schafft während dem Lernprozess systematisch Bezüge sowohl zu den Kompetenzzielen als auch zu den Lernzielen einzelner Etappen.",{"$f":"SUM('LP 1'!B8,'LP 2'!B8,'LP 3'!B8,'LP 4'!B8,'LP 5'!B8,'LP 6'!B8,'LP 7'!B8,'LP 8'!B8,'LP 9'!B8,'LP 10'!B8,'LP 11'!B8,'LP 12'!B8,'LP 13'!B8,'LP 14'!B8,'LP 15'!B8,)","v":0},{"$f":"SUM('LP 1'!C8,'LP 2'!C8,'LP 3'!C8,'LP 4'!C8,'LP 5'!C8,'LP 6'!C8,'LP 7'!C8,'LP 8'!C8,'LP 9'!C8,'LP 10'!C8,'LP 11'!C8,'LP 12'!C8,'LP 13'!C8,'LP 14'!C8,'LP 15'!C8,)","v":0},{"$f":"SUM('LP 1'!D8,'LP 2'!D8,'LP 3'!D8,'LP 4'!D8,'LP 5'!D8,'LP 6'!D8,'LP 7'!D8,'LP 8'!D8,'LP 9'!D8,'LP 10'!D8,'LP 11'!D8,'LP 12'!D8,'LP 13'!D8,'LP 14'!D8,'LP 15'!D8,)","v":0},{"$f":"SUM('LP 1'!E8,'LP 2'!E8,'LP 3'!E8,'LP 4'!E8,'LP 5'!E8,'LP 6'!E8,'LP 7'!E8,'LP 8'!E8,'LP 9'!E8,'LP 10'!E8,'LP 11'!E8,'LP 12'!E8,'LP 13'!E8,'LP 14'!E8,'LP 15'!E8,)","v":0},null,null,null,{"$f":"'LP 1'!F8","v":0},{"$f":"'LP 2'!F8","v":0},{"$f":"'LP 3'!F8","v":0},{"$f":"'LP 4'!F8","v":0},{"$f":"'LP 5'!F8","v":0},{"$f":"'LP 6'!F8","v":0},{"$f":"'LP 7'!F8","v":0},{"$f":"'LP 8'!F8","v":0},{"$f":"'LP 9'!F8","v":0},{"$f":"'LP 10'!F8","v":0},{"$f":"'LP 11'!F8","v":0},{"$f":"'LP 12'!F8","v":0},{"$f":"'LP 13'!F8","v":0},{"$f":"'LP 14'!F8","v":0},{"$f":"'LP 15'!F8","v":0}]
["Die Lehrperson stellt bewusst enge, halboffene oder offene Aufgaben, je nach Stand im Lernprozess beziehungsweise in Bezug zum Kompetenzaufbau.",{"$f":"SUM('LP 1'!B9,'LP 2'!B9,'LP 3'!B9,'LP 4'!B9,'LP 5'!B9,'LP 6'!B9,'LP 7'!B9,'LP 8'!B9,'LP 9'!B9,'LP 10'!B9,'LP 11'!B9,'LP 12'!B9,'LP 13'!B9,'LP 14'!B9,'LP 15'!B9,)","v":0},{"$f":"SUM('LP 1'!C9,'LP 2'!C9,'LP 3'!C9,'LP 4'!C9,'LP 5'!C9,'LP 6'!C9,'LP 7'!C9,'LP 8'!C9,'LP 9'!C9,'LP 10'!C9,'LP 11'!C9,'LP 12'!C9,'LP 13'!C9,'LP 14'!C9,'LP 15'!C9,)","v":0},{"$f":"SUM('LP 1'!D9,'LP 2'!D9,'LP 3'!D9,'LP 4'!D9,'LP 5'!D9,'LP 6'!D9,'LP 7'!D9,'LP 8'!D9,'LP 9'!D9,'LP 10'!D9,'LP 11'!D9,'LP 12'!D9,'LP 13'!D9,'LP 14'!D9,'LP 15'!D9,)","v":0},{"$f":"SUM('LP 1'!E9,'LP 2'!E9,'LP 3'!E9,'LP 4'!E9,'LP 5'!E9,'LP 6'!E9,'LP 7'!E9,'LP 8'!E9,'LP 9'!E9,'LP 10'!E9,'LP 11'!E9,'LP 12'!E9,'LP 13'!E9,'LP 14'!E9,'LP 15'!E9,)","v":0},null,null,null,{"$f":"'LP 1'!F9","v":0},{"$f":"'LP 2'!F9","v":0},{"$f":"'LP 3'!F9","v":0},{"$f":"'LP 4'!F9","v":0},{"$f":"'LP 5'!F9","v":0},{"$f":"'LP 6'!F9","v":0},{"$f":"'LP 7'!F9","v":0},{"$f":"'LP 8'!F9","v":0},{"$f":"'LP 9'!F9","v":0},{"$f":"'LP 10'!F9","v":0},{"$f":"'LP 11'!F9","v":0},{"$f":"'LP 12'!F9","v":0},{"$f":"'LP 13'!F9","v":0},{"$f":"'LP 14'!F9","v":0},{"$f":"'LP 15'!F9","v":0}]
["Die Lehrperson gestaltet den Unterricht so, dass Schülerinnen und Schüler Erfolgserlebnisse erfahren.",{"$f":"SUM('LP 1'!B10,'LP 2'!B10,'LP 3'!B10,'LP 4'!B10,'LP 5'!B10,'LP 6'!B10,'LP 7'!B10,'LP 8'!B10,'LP 9'!B10,'LP 10'!B10,'LP 11'!B10,'LP 12'!B10,'LP 13'!B10,'LP 14'!B10,'LP 15'!B10,)","v":0},{"$f":"SUM('LP 1'!C10,'LP 2'!C10,'LP 3'!C10,'LP 4'!C10,'LP 5'!C10,'LP 6'!C10,'LP 7'!C10,'LP 8'!C10,'LP 9'!C10,'LP 10'!C10,'LP 11'!C10,'LP 12'!C10,'LP 13'!C10,'LP 14'!C10,'LP 15'!C10,)","v":0},{"$f":"SUM('LP 1'!D10,'LP 2'!D10,'LP 3'!D10,'LP 4'!D10,'LP 5'!D10,'LP 6'!D10,'LP 7'!D10,'LP 8'!D10,'LP 9'!D10,'LP 10'!D10,'LP 11'!D10,'LP 12'!D10,'LP 13'!D10,'LP 14'!D10,'LP 15'!D10,)","v":0},{"$f":"SUM('LP 1'!E10,'LP 2'!E10,'LP 3'!E10,'LP 4'!E10,'LP 5'!E10,'LP 6'!E10,'LP 7'!E10,'LP 8'!E10,'LP 9'!E10,'LP 10'!E10,'LP 11'!E10,'LP 12'!E10,'LP 13'!E10,'LP 14'!E10,'LP 15'!E10,)","v":0},null,null,null,{"$f":"'LP 1'!F10","v":0},{"$f":"'LP 2'!F10","v":0},{"$f":"'LP 3'!F10","v":0},{"$f":"'LP 4'!F10","v":0},{"$f":"'LP 5'!F10","v":0},{"$f":"'LP 6'!F10","v":0},{"$f":"'LP 7'!F10","v":0},{"$f":"'LP 8'!F10","v":0},{"$f":"'LP 9'!F10","v":0},{"$f":"'LP 10'!F10","v":0},{"$f":"'LP 11'!F10","v":0},{"$f":"'LP 12'!F10","v":0},{"$f":"'LP 13'!F10","v":0},{"$f":"'LP 14'!F10","v":0},{"$f":"'LP 15'!F10","v":0}]
["Die Lehrperson gibt den Schülerinnen und Schülern ein individuelles Feedback zum Lernprozess und/oder Lernprodukt aufgrund von Beobachtungen und/oder formativen Beurteilungsformen.",{"$f":"SUM('LP 1'!B11,'LP 2'!B11,'LP 3'!B11,'LP 4'!B11,'LP 5'!B11,'LP 6'!B11,'LP 7'!B11,'LP 8'!B11,'LP 9'!B11,'LP 10'!B11,'LP 11'!B11,'LP 12'!B11,'LP 13'!B11,'LP 14'!B11,'LP 15'!B11,)","v":0},{"$f":"SUM('LP 1'!C11,'LP 2'!C11,'LP 3'!C11,'LP 4'!C11,'LP 5'!C11,'LP 6'!C11,'LP 7'!C11,'LP 8'!C11,'LP 9'!C11,'LP 10'!C11,'LP 11'!C11,'LP 12'!C11,'LP 13'!C11,'LP 14'!C11,'LP 15'!C11,)","v":0},{"$f":"SUM('LP 1'!D11,'LP 2'!D11,'LP 3'!D11,'LP 4'!D11,'LP 5'!D11,'LP 6'!D11,'LP 7'!D11,'LP 8'!D11,'LP 9'!D11,'LP 10'!D11,'LP 11'!D11,'LP 12'!D11,'LP 13'!D11,'LP 14'!D11,'LP 15'!D11,)","v":0},{"$f":"SUM('LP 1'!E11,'LP 2'!E11,'LP 3'!E11,'LP 4'!E11,'LP 5'!E11,'LP 6'!E11,'LP 7'!E11,'LP 8'!E11,'LP 9'!E11,'LP 10'!E11,'LP 11'!E11,'LP 12'!E11,'LP 13'!E11,'LP 14'!E11,'LP 15'!E11,)","v":0},null,null,null,{"$f":"'LP 1'!F11","v":0},{"$f":"'LP 2'!F11","v":0},{"$f":"'LP 3'!F11","v":0},{"$f":"'LP 4'!F11","v":0},{"$f":"'LP 5'!F11","v":0},{"$f":"'LP 6'!F11","v":0},{"$f":"'LP 7'!F11","v":0},{"$f":"'LP 8'!F11","v":0},{"$f":"'LP 9'!F11","v":0},{"$f":"'LP 10'!F11","v":0},{"$f":"'LP 11'!F11","v":0},{"$f":"'LP 12'!F11","v":0},{"$f":"'LP 13'!F11","v":0},{"$f":"'LP 14'!F11","v":0},{"$f":"'LP 15'!F11","v":0}]
["Die Lehrperson gestaltet den Unterricht so, dass sich die Schülerinnen und Schüler gegenseitig konstruktive Rückmeldungen geben können (Peerfeedback).",{"$f":"SUM('LP 1'!B12,'LP 2'!B12,'LP 3'!B12,'LP 4'!B12,'LP 5'!B12,'LP 6'!B12,'LP 7'!B12,'LP 8'!B12,'LP 9'!B12,'LP 10'!B12,'LP 11'!B12,'LP 12'!B12,'LP 13'!B12,'LP 14'!B12,'LP 15'!B12,)","v":0},{"$f":"SUM('LP 1'!C12,'LP 2'!C12,'LP 3'!C12,'LP 4'!C12,'LP 5'!C12,'LP 6'!C12,'LP 7'!C12,'LP 8'!C12,'LP 9'!C12,'LP 10'!C12,'LP 11'!C12,'LP 12'!C12,'LP 13'!C12,'LP 14'!C12,'LP 15'!C12,)","v":0},{"$f":"SUM('LP 1'!D12,'LP 2'!D12,'LP 3'!D12,'LP 4'!D12,'LP 5'!D12,'LP 6'!D12,'LP 7'!D12,'LP 8'!D12,'LP 9'!D12,'LP 10'!D12,'LP 11'!D12,'LP 12'!D12,'LP 13'!D12,'LP 14'!D12,'LP 15'!D12,)","v":0},{"$f":"SUM('LP 1'!E12,'LP 2'!E12,'LP 3'!E12,'LP 4'!E12,'LP 5'!E12,'LP 6'!E12,'LP 7'!E12,'LP 8'!E12,'LP 9'!E12,'LP 10'!E12,'LP 11'!E12,'LP 12'!E12,'LP 13'!E12,'LP 14'!E12,'LP 15'!E12,)","v":0},null,null,null,{"$f":"'LP 1'!F12","v":0},{"$f":"'LP 2'!F12","v":0},{"$f":"'LP 3'!F12","v":0},{"$f":"'LP 4'!F12","v":0},{"$f":"'LP 5'!F12","v":0},{"$f":"'LP 6'!F12","v":0},{"$f":"'LP 7'!F12","v":0},{"$f":"'LP 8'!F12","v":0},{"$f":"'LP 9'!F12","v":0},{"$f":"'LP 10'!F12","v":0},{"$f":"'LP 11'!F12","v":0},{"$f":"'LP 12'!F12","v":0},{"$f":"'LP 13'!F12","v":0},{"$f":"'LP 14'!F12","v":0},{"$f":"'LP 15'!F12","v":0}]
["Die Lehrperson regt mit differenzierten Fragestellungen zur Reflexion und Dokumentation des eigenen Lernens und Problemlösens an.",{"$f":"SUM('LP 1'!B13,'LP 2'!B13,'LP 3'!B13,'LP 4'!B13,'LP 5'!B13,'LP 6'!B13,'LP 7'!B13,'LP 8'!B13,'LP 9'!B13,'LP 10'!B13,'LP 11'!B13,'LP 12'!B13,'LP 13'!B13,'LP 14'!B13,'LP 15'!B13,)","v":0},{"$f":"SUM('LP 1'!C13,'LP 2'!C13,'LP 3'!C13,'LP 4'!C13,'LP 5'!C13,'LP 6'!C13,'LP 7'!C13,'LP 8'!C13,'LP 9'!C13,'LP 10'!C13,'LP 11'!C13,'LP 12'!C13,'LP 13'!C13,'LP 14'!C13,'LP 15'!C13,)","v":0},{"$f":"SUM('LP 1'!D13,'LP 2'!D13,'LP 3'!D13,'LP 4'!D13,'LP 5'!D13,'LP 6'!D13,'LP 7'!D13,'LP 8'!D13,'LP 9'!D13,'LP 10'!D13,'LP 11'!D13,'LP 12'!D13,'LP 13'!D13,'LP 14'!D13,'LP 15'!D13,)","v":0},{"$f":"SUM('LP 1'!E13,'LP 2'!E13,'LP 3'!E13,'LP 4'!E13,'LP 5'!E13,'LP 6'!E13,'LP 7'!E13,'LP 8'!E13,'LP 9'!E13,'LP 10'!E13,'LP 11'!E13,'LP 12'!E13,'LP 13'!E13,'LP 14'!E13,'LP 15'!E13,)","v":0},null,null,null,{"$f":"'LP 1'!F13","v":0},{"$f":"'LP 2'!F13","v":0},{"$f":"'LP 3'!F13","v":0},{"$f":"'LP 4'!F13","v":0},{"$f":"'LP 5'!F13","v":0},{"$f":"'LP 6'!F13","v":0},{"$f":"'LP 7'!F13","v":0},{"$f":"'LP 8'!F13","v":0},{"$f":"'LP 9'!F13","v":0},{"$f":"'LP 10'!F13","v":0},{"$f":"'LP 11'!F13","v":0},{"$f":"'LP 12'!F13","v":0},{"$f":"'LP 13'!F13","v":0},{"$f":"'LP 14'!F13","v":0},{"$f":"'LP 15'!F13","v":0}]

{"sheet":"Beobachtungsbogen","index":1,"n_rows":75,"n_cols":8,"rows_kept":75,"cut":false,"hidden":false,"merged":[[62,5,62,8],[63,5,63,8],[64,5,64,8],[65,5,65,8],[69,5,69,8],[70,5,70,8],[66,5,66,8],[67,5,67,8],[68,5,68,8],[72,5,72,8],[71,5,71,8],[0,0,0,8],[13,0,60,1],[13,2,60,4],[13,5,60,8],[61,5,61,8]]}
["Unterrichtsbesuch"]
[]
["Schule: "]
["Klasse:"]
["Ort: "]
["Lehrperson:"]
["Zeit: "]
["Fach:"]
["Anzahl Schülerinnen und Schüler:"]
["männlich:"]
["weiblich:"]
[]
["Unterrichtsprotokoll"]
["Wann/Was",null,null,null,null,"Bemerkungen"]
[]
[]
[]
[]
[]
[]
[]
[]
[]
[]
[]
[]
[]
[]
[]
[]
[]
[]
[]
[]
[]
[]
[]
[]
[]
[]
[]
[]
[]
[]
[]
[]
[]
[]
[]
[]
[]
[]
[]
[]
[]
[]
[]
[]
[]
[]
[]
[{"$f":"Auswertungsraster!A5","v":"Indikatoren"},{"$f":"Auswertungsraster!B5","v":"ja"},{"$f":"Auswertungsraster!C5","v":"teils"},{"$f":"Auswertungsraster!D5","v":"nein"},{"$f":"Auswertungsraster!E5","v":"?"},"Bemerkungen"]
[{"$f":"Auswertungsraster!A6","v":"Die Lehrperson motiviert die Schülerinnen und Schüler für die Aufgaben/Fragen/Problemstellungen. "}]
[{"$f":"Auswertungsraster!A7","v":"Die Lehrperson schafft herausfordernde Problemstellungen, die Schülerinnen und Schüler zum Denken und Handeln anregen."}]
[{"$f":"Auswertungsraster!A8","v":"Die Lehrperson knüpft im Unterricht an das Vorwissen der Schülerinnen und Schüler an."}]
[{"$f":"Auswertungsraster!A9","v":"Die Lehrperson schafft Situationen, die den Lerndialog unter Schülerinnen und Schülern anregen und lassen Raum für das Lernen von- und miteinander."}]
[{"$f":"Auswertungsraster!A10","v":"Die Lehrperson gibt den Schülerinnen und Schülern die Kompetenz-/Lernziele rechtzeitig, schriftlich und verständlich bekannt."}]
[{"$f":"Auswertungsraster!A11","v":"Die Lehrperson schafft während dem Lernprozess systematisch Bezüge sowohl zu den Kompetenzzielen als auch zu den Lernzielen einzelner Etappen."}]
[{"$f":"Auswertungsraster!A12","v":"Die Lehrperson stellt bewusst enge, halboffene oder offene Aufgaben, je nach Stand im Lernprozess beziehungsweise in Bezug zum Kompetenzaufbau."}]
[{"$f":"Auswertungsraster!A13","v":"Die Lehrperson gestaltet den Unterricht so, dass Schülerinnen und Schüler Erfolgserlebnisse erfahren."}]
[{"$f":"Auswertungsraster!A14","v":"Die Lehrperson gibt den Schülerinnen und Schülern ein individuelles Feedback zum Lernprozess und/oder Lernprodukt aufgrund von Beobachtungen und/oder formativen Beurteilungsformen."}]
[{"$f":"Auswertungsraster!A15","v":"Die Lehrperson gestaltet den Unterricht so, dass sich die Schülerinnen und Schüler gegenseitig konstruktive Rückmeldungen geben können (Peerfeedback)."}]
[{"$f":"Auswertungsraster!A16","v":"Die Lehrperson regt mit differenzierten Fragestellungen zur Reflexion und Dokumentation des eigenen Lernens und Problemlösens an."}]
[{"$f":"Auswertungsraster!A2","v":"Gesamtbewertung "},{"$f":"Auswertungsraster!B2","v":" +++"},{"$f":"Auswertungsraster!C2","v":" ++"},{"$f":"Auswertungsraster!D2","v":" +"},{"$f":"Auswertungsraster!E2","v":" -"},{"$f":"Auswertungsraster!F2","v":" --"},{"$f":"Auswertungsraster!G2","v":" ---"},{"$f":"Auswertungsraster!H2","v":" ?"}]
[{"$f":"Auswertungsraster!A3","v":"Bilanzierende Beurteilung Unterricht"}]

{"sheet":"LP 1","index":2,"n_rows":14,"n_cols":9,"rows_kept":14,"cut":false,"hidden":false,"merged":[[13,0,14,0],[1,5,1,8],[2,5,2,8],[3,5,3,8],[4,5,4,8],[5,5,5,8],[6,5,6,8],[7,5,7,8],[8,5,8,8],[9,5,9,8],[10,5,10,8],[11,5,11,8],[12,5,12,8]]}
["LP 1"]
[{"$f":"Auswertungsraster!A5","v":"Indikatoren"},"ja","teils","nein","?","Bemerkungen"]
[{"$f":"Auswertungsraster!A6","v":"Die Lehrperson motiviert die Schülerinnen und Schüler für die Aufgaben/Fragen/Problemstellungen. "}]
[{"$f":"Auswertungsraster!A7","v":"Die Lehrperson schafft herausfordernde Problemstellungen, die Schülerinnen und Schüler zum Denken und Handeln anregen."}]
[{"$f":"Auswertungsraster!A8","v":"Die Lehrperson knüpft im Unterricht an das Vorwissen der Schülerinnen und Schüler an."}]
[{"$f":"Auswertungsraster!A9","v":"Die Lehrperson schafft Situationen, die den Lerndialog unter Schülerinnen und Schülern anregen und lassen Raum für das Lernen von- und miteinander."}]
[{"$f":"Auswertungsraster!A10","v":"Die Lehrperson gibt den Schülerinnen und Schülern die Kompetenz-/Lernziele rechtzeitig, schriftlich und verständlich bekannt."}]
[{"$f":"Auswertungsraster!A11","v":"Die Lehrperson schafft während dem Lernprozess systematisch Bezüge sowohl zu den Kompetenzzielen als auch zu den Lernzielen einzelner Etappen."}]
[{"$f":"Auswertungsraster!A12","v":"Die Lehrperson stellt bewusst enge, halboffene oder offene Aufgaben, je nach Stand im Lernprozess beziehungsweise in Bezug zum Kompetenzaufbau."}]
[{"$f":"Auswertungsraster!A13","v":"Die Lehrperson gestaltet den Unterricht so, dass Schülerinnen und Schüler Erfolgserlebnisse erfahren."}]
[{"$f":"Auswertungsraster!A14","v":"Die Lehrperson gibt den Schülerinnen und Schülern ein individuelles Feedback zum Lernprozess und/oder Lernprodukt aufgrund von Beobachtungen und/oder formativen Beurteilungsformen."}]
[{"$f":"Auswertungsraster!A15","v":"Die Lehrperson gestaltet den Unterricht so, dass sich die Schülerinnen und Schüler gegenseitig konstruktive Rückmeldungen geben können (Peerfeedback)."}]
[{"$f":"Auswertungsraster!A16","v":"Die Lehrperson regt mit differenzierten Fragestellungen zur Reflexion und Dokumentation des eigenen Lernens und Problemlösens an."}]
["Bilanzierende Bewertung"," +++"," ++","+"," -"," --"," ---","?","Bemerkungen"]

{"sheet":"LP 2","index":3,"n_rows":14,"n_cols":9,"rows_kept":14,"cut":false,"hidden":false,"merged":[[6,5,6,8],[1,5,1,8],[2,5,2,8],[3,5,3,8],[4,5,4,8],[5,5,5,8],[12,5,12,8],[13,0,14,0],[7,5,7,8],[8,5,8,8],[9,5,9,8],[10,5,10,8],[11,5,11,8]]}
["LP 2"]
[{"$f":"Auswertungsraster!A5","v":"Indikatoren"},"ja","teils","nein","?","Bemerkungen"]
[{"$f":"Auswertungsraster!A6","v":"Die Lehrperson motiviert die Schülerinnen und Schüler für die Aufgaben/Fragen/Problemstellungen. "}]
[{"$f":"Auswertungsraster!A7","v":"Die Lehrperson schafft herausfordernde Problemstellungen, die Schülerinnen und Schüler zum Denken und Handeln anregen."}]
[{"$f":"Auswertungsraster!A8","v":"Die Lehrperson knüpft im Unterricht an das Vorwissen der Schülerinnen und Schüler an."}]
[{"$f":"Auswertungsraster!A9","v":"Die Lehrperson schafft Situationen, die den Lerndialog unter Schülerinnen und Schülern anregen und lassen Raum für das Lernen von- und miteinander."}]
[{"$f":"Auswertungsraster!A10","v":"Die Lehrperson gibt den Schülerinnen und Schülern die Kompetenz-/Lernziele rechtzeitig, schriftlich und verständlich bekannt."}]
[{"$f":"Auswertungsraster!A11","v":"Die Lehrperson schafft während dem Lernprozess systematisch Bezüge sowohl zu den Kompetenzzielen als auch zu den Lernzielen einzelner Etappen."}]
[{"$f":"Auswertungsraster!A12","v":"Die Lehrperson stellt bewusst enge, halboffene oder offene Aufgaben, je nach Stand im Lernprozess beziehungsweise in Bezug zum Kompetenzaufbau."}]
[{"$f":"Auswertungsraster!A13","v":"Die Lehrperson gestaltet den Unterricht so, dass Schülerinnen und Schüler Erfolgserlebnisse erfahren."}]
[{"$f":"Auswertungsraster!A14","v":"Die Lehrperson gibt den Schülerinnen und Schülern ein individuelles Feedback zum Lernprozess und/oder Lernprodukt aufgrund von Beobachtungen und/oder formativen Beurteilungsformen."}]
[{"$f":"Auswertungsraster!A15","v":"Die Lehrperson gestaltet den Unterricht so, dass sich die Schülerinnen und Schüler gegenseitig konstruktive Rückmeldungen geben können (Peerfeedback)."}]
[{"$f":"Auswertungsraster!A16","v":"Die Lehrperson regt mit differenzierten Fragestellungen zur Reflexion und Dokumentation des eigenen Lernens und Problemlösens an."}]
["Bilanzierende Bewertung"," +++"," ++","+"," -"," --"," ---","?","Bemerkungen"]

{"sheet":"LP 3","index":4,"n_rows":14,"n_cols":9,"rows_kept":14,"cut":false,"hidden":false,"merged":[[6,5,6,8],[1,5,1,8],[2,5,2,8],[3,5,3,8],[4,5,4,8],[5,5,5,8],[13,0,14,0],[7,5,7,8],[8,5,8,8],[9,5,9,8],[10,5,10,8],[11,5,11,8],[12,5,12,8]]}
["LP 3"]
[{"$f":"Auswertungsraster!A5","v":"Indikatoren"},"ja","teils","nein","?","Bemerkungen"]
[{"$f":"Auswertungsraster!A6","v":"Die Lehrperson motiviert die Schülerinnen und Schüler für die Aufgaben/Fragen/Problemstellungen. "}]
[{"$f":"Auswertungsraster!A7","v":"Die Lehrperson schafft herausfordernde Problemstellungen, die Schülerinnen und Schüler zum Denken und Handeln anregen."}]
[{"$f":"Auswertungsraster!A8","v":"Die Lehrperson knüpft im Unterricht an das Vorwissen der Schülerinnen und Schüler an."}]
[{"$f":"Auswertungsraster!A9","v":"Die Lehrperson schafft Situationen, die den Lerndialog unter Schülerinnen und Schülern anregen und lassen Raum für das Lernen von- und miteinander."}]
[{"$f":"Auswertungsraster!A10","v":"Die Lehrperson gibt den Schülerinnen und Schülern die Kompetenz-/Lernziele rechtzeitig, schriftlich und verständlich bekannt."}]
[{"$f":"Auswertungsraster!A11","v":"Die Lehrperson schafft während dem Lernprozess systematisch Bezüge sowohl zu den Kompetenzzielen als auch zu den Lernzielen einzelner Etappen."}]
[{"$f":"Auswertungsraster!A12","v":"Die Lehrperson stellt bewusst enge, halboffene oder offene Aufgaben, je nach Stand im Lernprozess beziehungsweise in Bezug zum Kompetenzaufbau."}]
[{"$f":"Auswertungsraster!A13","v":"Die Lehrperson gestaltet den Unterricht so, dass Schülerinnen und Schüler Erfolgserlebnisse erfahren."}]
[{"$f":"Auswertungsraster!A14","v":"Die Lehrperson gibt den Schülerinnen und Schülern ein individuelles Feedback zum Lernprozess und/oder Lernprodukt aufgrund von Beobachtungen und/oder formativen Beurteilungsformen."}]
[{"$f":"Auswertungsraster!A15","v":"Die Lehrperson gestaltet den Unterricht so, dass sich die Schülerinnen und Schüler gegenseitig konstruktive Rückmeldungen geben können (Peerfeedback)."}]
[{"$f":"Auswertungsraster!A16","v":"Die Lehrperson regt mit differenzierten Fragestellungen zur Reflexion und Dokumentation des eigenen Lernens und Problemlösens an."}]
["Bilanzierende Bewertung"," +++"," ++","+"," -"," --"," ---","?","Bemerkungen"]

{"sheet":"LP 4","index":5,"n_rows":14,"n_cols":9,"rows_kept":14,"cut":false,"hidden":false,"merged":[[6,5,6,8],[1,5,1,8],[2,5,2,8],[3,5,3,8],[4,5,4,8],[5,5,5,8],[13,0,14,0],[7,5,7,8],[8,5,8,8],[9,5,9,8],[10,5,10,8],[11,5,11,8],[12,5,12,8]]}
["LP 4"]
[{"$f":"Auswertungsraster!A5","v":"Indikatoren"},"ja","teils","nein","?","Bemerkungen"]
[{"$f":"Auswertungsraster!A6","v":"Die Lehrperson motiviert die Schülerinnen und Schüler für die Aufgaben/Fragen/Problemstellungen. "}]
[{"$f":"Auswertungsraster!A7","v":"Die Lehrperson schafft herausfordernde Problemstellungen, die Schülerinnen und Schüler zum Denken und Handeln anregen."}]
[{"$f":"Auswertungsraster!A8","v":"Die Lehrperson knüpft im Unterricht an das Vorwissen der Schülerinnen und Schüler an."}]
[{"$f":"Auswertungsraster!A9","v":"Die Lehrperson schafft Situationen, die den Lerndialog unter Schülerinnen und Schülern anregen und lassen Raum für das Lernen von- und miteinander."}]
[{"$f":"Auswertungsraster!A10","v":"Die Lehrperson gibt den Schülerinnen und Schülern die Kompetenz-/Lernziele rechtzeitig, schriftlich und verständlich bekannt."}]
[{"$f":"Auswertungsraster!A11","v":"Die Lehrperson schafft während dem Lernprozess systematisch Bezüge sowohl zu den Kompetenzzielen als auch zu den Lernzielen einzelner Etappen."}]
[{"$f":"Auswertungsraster!A12","v":"Die Lehrperson stellt bewusst enge, halboffene oder offene Aufgaben, je nach Stand im Lernprozess beziehungsweise in Bezug zum Kompetenzaufbau."}]
[{"$f":"Auswertungsraster!A13","v":"Die Lehrperson gestaltet den Unterricht so, dass Schülerinnen und Schüler Erfolgserlebnisse erfahren."}]
[{"$f":"Auswertungsraster!A14","v":"Die Lehrperson gibt den Schülerinnen und Schülern ein individuelles Feedback zum Lernprozess und/oder Lernprodukt aufgrund von Beobachtungen und/oder formativen Beurteilungsformen."}]
[{"$f":"Auswertungsraster!A15","v":"Die Lehrperson gestaltet den Unterricht so, dass sich die Schülerinnen und Schüler gegenseitig konstruktive Rückmeldungen geben können (Peerfeedback)."}]
[{"$f":"Auswertungsraster!A16","v":"Die Lehrperson regt mit differenzierten Fragestellungen zur Reflexion und Dokumentation des eigenen Lernens und Problemlösens an."}]
["Bilanzierende Bewertung"," +++"," ++","+"," -"," --"," ---","?","Bemerkungen"]

{"sheet":"LP 5","index":6,"n_rows":14,"n_cols":9,"rows_kept":14,"cut":false,"hidden":false,"merged":[[6,5,6,8],[1,5,1,8],[2,5,2,8],[3,5,3,8],[4,5,4,8],[5,5,5,8],[13,0,14,0],[7,5,7,8],[8,5,8,8],[9,5,9,8],[10,5,10,8],[11,5,11,8],[12,5,12,8]]}
["LP 5"]
[{"$f":"Auswertungsraster!A5","v":"Indikatoren"},"ja","teils","nein","?","Bemerkungen"]
[{"$f":"Auswertungsraster!A6","v":"Die Lehrperson motiviert die Schülerinnen und Schüler für die Aufgaben/Fragen/Problemstellungen. "}]
[{"$f":"Auswertungsraster!A7","v":"Die Lehrperson schafft herausfordernde Problemstellungen, die Schülerinnen und Schüler zum Denken und Handeln anregen."}]
[{"$f":"Auswertungsraster!A8","v":"Die Lehrperson knüpft im Unterricht an das Vorwissen der Schülerinnen und Schüler an."}]
[{"$f":"Auswertungsraster!A9","v":"Die Lehrperson schafft Situationen, die den Lerndialog unter Schülerinnen und Schülern anregen und lassen Raum für das Lernen von- und miteinander."}]
[{"$f":"Auswertungsraster!A10","v":"Die Lehrperson gibt den Schülerinnen und Schülern die Kompetenz-/Lernziele rechtzeitig, schriftlich und verständlich bekannt."}]
[{"$f":"Auswertungsraster!A11","v":"Die Lehrperson schafft während dem Lernprozess systematisch Bezüge sowohl zu den Kompetenzzielen als auch zu den Lernzielen einzelner Etappen."}]
[{"$f":"Auswertungsraster!A12","v":"Die Lehrperson stellt bewusst enge, halboffene oder offene Aufgaben, je nach Stand im Lernprozess beziehungsweise in Bezug zum Kompetenzaufbau."}]
[{"$f":"Auswertungsraster!A13","v":"Die Lehrperson gestaltet den Unterricht so, dass Schülerinnen und Schüler Erfolgserlebnisse erfahren."}]
[{"$f":"Auswertungsraster!A14","v":"Die Lehrperson gibt den Schülerinnen und Schülern ein individuelles Feedback zum Lernprozess und/oder Lernprodukt aufgrund von Beobachtungen und/oder formativen Beurteilungsformen."}]
[{"$f":"Auswertungsraster!A15","v":"Die Lehrperson gestaltet den Unterricht so, dass sich die Schülerinnen und Schüler gegenseitig konstruktive Rückmeldungen geben können (Peerfeedback)."}]
[{"$f":"Auswertungsraster!A16","v":"Die Lehrperson regt mit differenzierten Fragestellungen zur Reflexion und Dokumentation des eigenen Lernens und Problemlösens an."}]
["Bilanzierende Bewertung"," +++"," ++","+"," -"," --"," ---","?","Bemerkungen"]

{"sheet":"LP 6","index":7,"n_rows":14,"n_cols":9,"rows_kept":14,"cut":false,"hidden":false,"merged":[[6,5,6,8],[1,5,1,8],[2,5,2,8],[3,5,3,8],[4,5,4,8],[5,5,5,8],[13,0,14,0],[7,5,7,8],[8,5,8,8],[9,5,9,8],[10,5,10,8],[11,5,11,8],[12,5,12,8]]}
["LP 6"]
[{"$f":"Auswertungsraster!A5","v":"Indikatoren"},"ja","teils","nein","?","Bemerkungen"]
[{"$f":"Auswertungsraster!A6","v":"Die Lehrperson motiviert die Schülerinnen und Schüler für die Aufgaben/Fragen/Problemstellungen. "}]
[{"$f":"Auswertungsraster!A7","v":"Die Lehrperson schafft herausfordernde Problemstellungen, die Schülerinnen und Schüler zum Denken und Handeln anregen."}]
[{"$f":"Auswertungsraster!A8","v":"Die Lehrperson knüpft im Unterricht an das Vorwissen der Schülerinnen und Schüler an."}]
[{"$f":"Auswertungsraster!A9","v":"Die Lehrperson schafft Situationen, die den Lerndialog unter Schülerinnen und Schülern anregen und lassen Raum für das Lernen von- und miteinander."}]
[{"$f":"Auswertungsraster!A10","v":"Die Lehrperson gibt den Schülerinnen und Schülern die Kompetenz-/Lernziele rechtzeitig, schriftlich und verständlich bekannt."}]
[{"$f":"Auswertungsraster!A11","v":"Die Lehrperson schafft während dem Lernprozess systematisch Bezüge sowohl zu den Kompetenzzielen als auch zu den Lernzielen einzelner Etappen."}]
[{"$f":"Auswertungsraster!A12","v":"Die Lehrperson stellt bewusst enge, halboffene oder offene Aufgaben, je nach Stand im Lernprozess beziehungsweise in Bezug zum Kompetenzaufbau."}]
[{"$f":"Auswertungsraster!A13","v":"Die Lehrperson gestaltet den Unterricht so, dass Schülerinnen und Schüler Erfolgserlebnisse erfahren."}]
[{"$f":"Auswertungsraster!A14","v":"Die Lehrperson gibt den Schülerinnen und Schülern ein individuelles Feedback zum Lernprozess und/oder Lernprodukt aufgrund von Beobachtungen und/oder formativen Beurteilungsformen."}]
[{"$f":"Auswertungsraster!A15","v":"Die Lehrperson gestaltet den Unterricht so, dass sich die Schülerinnen und Schüler gegenseitig konstruktive Rückmeldungen geben können (Peerfeedback)."}]
[{"$f":"Auswertungsraster!A16","v":"Die Lehrperson regt mit differenzierten Fragestellungen zur Reflexion und Dokumentation des eigenen Lernens und Problemlösens an."}]
["Bilanzierende Bewertung"," +++"," ++","+"," -"," --"," ---","?","Bemerkungen"]

{"sheet":"LP 7","index":8,"n_rows":14,"n_cols":9,"rows_kept":14,"cut":false,"hidden":false,"merged":[[6,5,6,8],[1,5,1,8],[2,5,2,8],[3,5,3,8],[4,5,4,8],[5,5,5,8],[13,0,14,0],[7,5,7,8],[8,5,8,8],[9,5,9,8],[10,5,10,8],[11,5,11,8],[12,5,12,8]]}
["LP 7"]
[{"$f":"Auswertungsraster!A5","v":"Indikatoren"},"ja","teils","nein","?","Bemerkungen"]
[{"$f":"Auswertungsraster!A6","v":"Die Lehrperson motiviert die Schülerinnen und Schüler für die Aufgaben/Fragen/Problemstellungen. "}]
[{"$f":"Auswertungsraster!A7","v":"Die Lehrperson schafft herausfordernde Problemstellungen, die Schülerinnen und Schüler zum Denken und Handeln anregen."}]
[{"$f":"Auswertungsraster!A8","v":"Die Lehrperson knüpft im Unterricht an das Vorwissen der Schülerinnen und Schüler an."}]
[{"$f":"Auswertungsraster!A9","v":"Die Lehrperson schafft Situationen, die den Lerndialog unter Schülerinnen und Schülern anregen und lassen Raum für das Lernen von- und miteinander."}]
[{"$f":"Auswertungsraster!A10","v":"Die Lehrperson gibt den Schülerinnen und Schülern die Kompetenz-/Lernziele rechtzeitig, schriftlich und verständlich bekannt."}]
[{"$f":"Auswertungsraster!A11","v":"Die Lehrperson schafft während dem Lernprozess systematisch Bezüge sowohl zu den Kompetenzzielen als auch zu den Lernzielen einzelner Etappen."}]
[{"$f":"Auswertungsraster!A12","v":"Die Lehrperson stellt bewusst enge, halboffene oder offene Aufgaben, je nach Stand im Lernprozess beziehungsweise in Bezug zum Kompetenzaufbau."}]
[{"$f":"Auswertungsraster!A13","v":"Die Lehrperson gestaltet den Unterricht so, dass Schülerinnen und Schüler Erfolgserlebnisse erfahren."}]
[{"$f":"Auswertungsraster!A14","v":"Die Lehrperson gibt den Schülerinnen und Schülern ein individuelles Feedback zum Lernprozess und/oder Lernprodukt aufgrund von Beobachtungen und/oder formativen Beurteilungsformen."}]
[{"$f":"Auswertungsraster!A15","v":"Die Lehrperson gestaltet den Unterricht so, dass sich die Schülerinnen und Schüler gegenseitig konstruktive Rückmeldungen geben können (Peerfeedback)."}]
[{"$f":"Auswertungsraster!A16","v":"Die Lehrperson regt mit differenzierten Fragestellungen zur Reflexion und Dokumentation des eigenen Lernens und Problemlösens an."}]
["Bilanzierende Bewertung"," +++"," ++","+"," -"," --"," ---","?","Bemerkungen"]

{"sheet":"LP 8","index":9,"n_rows":14,"n_cols":9,"rows_kept":14,"cut":false,"hidden":false,"merged":[[6,5,6,8],[1,5,1,8],[2,5,2,8],[3,5,3,8],[4,5,4,8],[5,5,5,8],[13,0,14,0],[7,5,7,8],[8,5,8,8],[9,5,9,8],[10,5,10,8],[11,5,11,8],[12,5,12,8]]}
["LP 8"]
[{"$f":"Auswertungsraster!A5","v":"Indikatoren"},"ja","teils","nein","?","Bemerkungen"]
[{"$f":"Auswertungsraster!A6","v":"Die Lehrperson motiviert die Schülerinnen und Schüler für die Aufgaben/Fragen/Problemstellungen. "}]
[{"$f":"Auswertungsraster!A7","v":"Die Lehrperson schafft herausfordernde Problemstellungen, die Schülerinnen und Schüler zum Denken und Handeln anregen."}]
[{"$f":"Auswertungsraster!A8","v":"Die Lehrperson knüpft im Unterricht an das Vorwissen der Schülerinnen und Schüler an."}]
[{"$f":"Auswertungsraster!A9","v":"Die Lehrperson schafft Situationen, die den Lerndialog unter Schülerinnen und Schülern anregen und lassen Raum für das Lernen von- und miteinander."}]
[{"$f":"Auswertungsraster!A10","v":"Die Lehrperson gibt den Schülerinnen und Schülern die Kompetenz-/Lernziele rechtzeitig, schriftlich und verständlich bekannt."}]
[{"$f":"Auswertungsraster!A11","v":"Die Lehrperson schafft während dem Lernprozess systematisch Bezüge sowohl zu den Kompetenzzielen als auch zu den Lernzielen einzelner Etappen."}]
[{"$f":"Auswertungsraster!A12","v":"Die Lehrperson stellt bewusst enge, halboffene oder offene Aufgaben, je nach Stand im Lernprozess beziehungsweise in Bezug zum Kompetenzaufbau."}]
[{"$f":"Auswertungsraster!A13","v":"Die Lehrperson gestaltet den Unterricht so, dass Schülerinnen und Schüler Erfolgserlebnisse erfahren."}]
[{"$f":"Auswertungsraster!A14","v":"Die Lehrperson gibt den Schülerinnen und Schülern ein individuelles Feedback zum Lernprozess und/oder Lernprodukt aufgrund von Beobachtungen und/oder formativen Beurteilungsformen."}]
[{"$f":"Auswertungsraster!A15","v":"Die Lehrperson gestaltet den Unterricht so, dass sich die Schülerinnen und Schüler gegenseitig konstruktive Rückmeldungen geben können (Peerfeedback)."}]
[{"$f":"Auswertungsraster!A16","v":"Die Lehrperson regt mit differenzierten Fragestellungen zur Reflexion und Dokumentation des eigenen Lernens und Problemlösens an."}]
["Bilanzierende Bewertung"," +++"," ++","+"," -"," --"," ---","?","Bemerkungen"]

{"sheet":"LP 9","index":10,"n_rows":14,"n_cols":9,"rows_kept":14,"cut":false,"hidden":false,"merged":[[6,5,6,8],[1,5,1,8],[2,5,2,8],[3,5,3,8],[4,5,4,8],[5,5,5,8],[13,0,14,0],[7,5,7,8],[8,5,8,8],[9,5,9,8],[10,5,10,8],[11,5,11,8],[12,5,12,8]]}
["LP 9"]
[{"$f":"Auswertungsraster!A5","v":"Indikatoren"},"ja","teils","nein","?","Bemerkungen"]
[{"$f":"Auswertungsraster!A6","v":"Die Lehrperson motiviert die Schülerinnen und Schüler für die Aufgaben/Fragen/Problemstellungen. "}]
[{"$f":"Auswertungsraster!A7","v":"Die Lehrperson schafft herausfordernde Problemstellungen, die Schülerinnen und Schüler zum Denken und Handeln anregen."}]
[{"$f":"Auswertungsraster!A8","v":"Die Lehrperson knüpft im Unterricht an das Vorwissen der Schülerinnen und Schüler an."}]
[{"$f":"Auswertungsraster!A9","v":"Die Lehrperson schafft Situationen, die den Lerndialog unter Schülerinnen und Schülern anregen und lassen Raum für das Lernen von- und miteinander."}]
[{"$f":"Auswertungsraster!A10","v":"Die Lehrperson gibt den Schülerinnen und Schülern die Kompetenz-/Lernziele rechtzeitig, schriftlich und verständlich bekannt."}]
[{"$f":"Auswertungsraster!A11","v":"Die Lehrperson schafft während dem Lernprozess systematisch Bezüge sowohl zu den Kompetenzzielen als auch zu den Lernzielen einzelner Etappen."}]
[{"$f":"Auswertungsraster!A12","v":"Die Lehrperson stellt bewusst enge, halboffene oder offene Aufgaben, je nach Stand im Lernprozess beziehungsweise in Bezug zum Kompetenzaufbau."}]
[{"$f":"Auswertungsraster!A13","v":"Die Lehrperson gestaltet den Unterricht so, dass Schülerinnen und Schüler Erfolgserlebnisse erfahren."}]
[{"$f":"Auswertungsraster!A14","v":"Die Lehrperson gibt den Schülerinnen und Schülern ein individuelles Feedback zum Lernprozess und/oder Lernprodukt aufgrund von Beobachtungen und/oder formativen Beurteilungsformen."}]
[{"$f":"Auswertungsraster!A15","v":"Die Lehrperson gestaltet den Unterricht so, dass sich die Schülerinnen und Schüler gegenseitig konstruktive Rückmeldungen geben können (Peerfeedback)."}]
[{"$f":"Auswertungsraster!A16","v":"Die Lehrperson regt mit differenzierten Fragestellungen zur Reflexion und Dokumentation des eigenen Lernens und Problemlösens an."}]
["Bilanzierende Bewertung"," +++"," ++","+"," -"," --"," ---","?","Bemerkungen"]

{"sheet":"LP 10","index":11,"n_rows":14,"n_cols":9,"rows_kept":14,"cut":false,"hidden":false,"merged":[[6,5,6,8],[1,5,1,8],[2,5,2,8],[3,5,3,8],[4,5,4,8],[5,5,5,8],[13,0,14,0],[7,5,7,8],[8,5,8,8],[9,5,9,8],[10,5,10,8],[11,5,11,8],[12,5,12,8]]}
["LP 10"]
[{"$f":"Auswertungsraster!A5","v":"Indikatoren"},"ja","teils","nein","?","Bemerkungen"]
[{"$f":"Auswertungsraster!A6","v":"Die Lehrperson motiviert die Schülerinnen und Schüler für die Aufgaben/Fragen/Problemstellungen. "}]
[{"$f":"Auswertungsraster!A7","v":"Die Lehrperson schafft herausfordernde Problemstellungen, die Schülerinnen und Schüler zum Denken und Handeln anregen."}]
[{"$f":"Auswertungsraster!A8","v":"Die Lehrperson knüpft im Unterricht an das Vorwissen der Schülerinnen und Schüler an."}]
[{"$f":"Auswertungsraster!A9","v":"Die Lehrperson schafft Situationen, die den Lerndialog unter Schülerinnen und Schülern anregen und lassen Raum für das Lernen von- und miteinander."}]
[{"$f":"Auswertungsraster!A10","v":"Die Lehrperson gibt den Schülerinnen und Schülern die Kompetenz-/Lernziele rechtzeitig, schriftlich und verständlich bekannt."}]
[{"$f":"Auswertungsraster!A11","v":"Die Lehrperson schafft während dem Lernprozess systematisch Bezüge sowohl zu den Kompetenzzielen als auch zu den Lernzielen einzelner Etappen."}]
[{"$f":"Auswertungsraster!A12","v":"Die Lehrperson stellt bewusst enge, halboffene oder offene Aufgaben, je nach Stand im Lernprozess beziehungsweise in Bezug zum Kompetenzaufbau."}]
[{"$f":"Auswertungsraster!A13","v":"Die Lehrperson gestaltet den Unterricht so, dass Schülerinnen und Schüler Erfolgserlebnisse erfahren."}]
[{"$f":"Auswertungsraster!A14","v":"Die Lehrperson gibt den Schülerinnen und Schülern ein individuelles Feedback zum Lernprozess und/oder Lernprodukt aufgrund von Beobachtungen und/oder formativen Beurteilungsformen."}]
[{"$f":"Auswertungsraster!A15","v":"Die Lehrperson gestaltet den Unterricht so, dass sich die Schülerinnen und Schüler gegenseitig konstruktive Rückmeldungen geben können (Peerfeedback)."}]
[{"$f":"Auswertungsraster!A16","v":"Die Lehrperson regt mit differenzierten Fragestellungen zur Reflexion und Dokumentation des eigenen Lernens und Problemlösens an."}]
["Bilanzierende Bewertung"," +++"," ++","+"," -"," --"," ---","?","Bemerkungen"]

{"sheet":"LP 11","index":12,"n_rows":14,"n_cols":9,"rows_kept":14,"cut":false,"hidden":false,"merged":[[6,5,6,8],[1,5,1,8],[2,5,2,8],[3,5,3,8],[4,5,4,8],[5,5,5,8],[13,0,14,0],[7,5,7,8],[8,5,8,8],[9,5,9,8],[10,5,10,8],[11,5,11,8],[12,5,12,8]]}
["LP 11"]
[{"$f":"Auswertungsraster!A5","v":"Indikatoren"},"ja","teils","nein","?","Bemerkungen"]
[{"$f":"Auswertungsraster!A6","v":"Die Lehrperson motiviert die Schülerinnen und Schüler für die Aufgaben/Fragen/Problemstellungen. "}]
[{"$f":"Auswertungsraster!A7","v":"Die Lehrperson schafft herausfordernde Problemstellungen, die Schülerinnen und Schüler zum Denken und Handeln anregen."}]
[{"$f":"Auswertungsraster!A8","v":"Die Lehrperson knüpft im Unterricht an das Vorwissen der Schülerinnen und Schüler an."}]
[{"$f":"Auswertungsraster!A9","v":"Die Lehrperson schafft Situationen, die den Lerndialog unter Schülerinnen und Schülern anregen und lassen Raum für das Lernen von- und miteinander."}]
[{"$f":"Auswertungsraster!A10","v":"Die Lehrperson gibt den Schülerinnen und Schülern die Kompetenz-/Lernziele rechtzeitig, schriftlich und verständlich bekannt."}]
[{"$f":"Auswertungsraster!A11","v":"Die Lehrperson schafft während dem Lernprozess systematisch Bezüge sowohl zu den Kompetenzzielen als auch zu den Lernzielen einzelner Etappen."}]
[{"$f":"Auswertungsraster!A12","v":"Die Lehrperson stellt bewusst enge, halboffene oder offene Aufgaben, je nach Stand im Lernprozess beziehungsweise in Bezug zum Kompetenzaufbau."}]
[{"$f":"Auswertungsraster!A13","v":"Die Lehrperson gestaltet den Unterricht so, dass Schülerinnen und Schüler Erfolgserlebnisse erfahren."}]
[{"$f":"Auswertungsraster!A14","v":"Die Lehrperson gibt den Schülerinnen und Schülern ein individuelles Feedback zum Lernprozess und/oder Lernprodukt aufgrund von Beobachtungen und/oder formativen Beurteilungsformen."}]
[{"$f":"Auswertungsraster!A15","v":"Die Lehrperson gestaltet den Unterricht so, dass sich die Schülerinnen und Schüler gegenseitig konstruktive Rückmeldungen geben können (Peerfeedback)."}]
[{"$f":"Auswertungsraster!A16","v":"Die Lehrperson regt mit differenzierten Fragestellungen zur Reflexion und Dokumentation des eigenen Lernens und Problemlösens an."}]
["Bilanzierende Bewertung"," +++"," ++","+"," -"," --"," ---","?","Bemerkungen"]

{"sheet":"LP 12","index":13,"n_rows":14,"n_cols":9,"rows_kept":14,"cut":false,"hidden":false,"merged":[[6,5,6,8],[1,5,1,8],[2,5,2,8],[3,5,3,8],[4,5,4,8],[5,5,5,8],[13,0,14,0],[7,5,7,8],[8,5,8,8],[9,5,9,8],[10,5,10,8],[11,5,11,8],[12,5,12,8]]}
["LP 12"]
[{"$f":"Auswertungsraster!A5","v":"Indikatoren"},"ja","teils","nein","?","Bemerkungen"]
[{"$f":"Auswertungsraster!A6","v":"Die Lehrperson motiviert die Schülerinnen und Schüler für die Aufgaben/Fragen/Problemstellungen. "}]
[{"$f":"Auswertungsraster!A7","v":"Die Lehrperson schafft herausfordernde Problemstellungen, die Schülerinnen und Schüler zum Denken und Handeln anregen."}]
[{"$f":"Auswertungsraster!A8","v":"Die Lehrperson knüpft im Unterricht an das Vorwissen der Schülerinnen und Schüler an."}]
[{"$f":"Auswertungsraster!A9","v":"Die Lehrperson schafft Situationen, die den Lerndialog unter Schülerinnen und Schülern anregen und lassen Raum für das Lernen von- und miteinander."}]
[{"$f":"Auswertungsraster!A10","v":"Die Lehrperson gibt den Schülerinnen und Schülern die Kompetenz-/Lernziele rechtzeitig, schriftlich und verständlich bekannt."}]
[{"$f":"Auswertungsraster!A11","v":"Die Lehrperson schafft während dem Lernprozess systematisch Bezüge sowohl zu den Kompetenzzielen als auch zu den Lernzielen einzelner Etappen."}]
[{"$f":"Auswertungsraster!A12","v":"Die Lehrperson stellt bewusst enge, halboffene oder offene Aufgaben, je nach Stand im Lernprozess beziehungsweise in Bezug zum Kompetenzaufbau."}]
[{"$f":"Auswertungsraster!A13","v":"Die Lehrperson gestaltet den Unterricht so, dass Schülerinnen und Schüler Erfolgserlebnisse erfahren."}]
[{"$f":"Auswertungsraster!A14","v":"Die Lehrperson gibt den Schülerinnen und Schülern ein individuelles Feedback zum Lernprozess und/oder Lernprodukt aufgrund von Beobachtungen und/oder formativen Beurteilungsformen."}]
[{"$f":"Auswertungsraster!A15","v":"Die Lehrperson gestaltet den Unterricht so, dass sich die Schülerinnen und Schüler gegenseitig konstruktive Rückmeldungen geben können (Peerfeedback)."}]
[{"$f":"Auswertungsraster!A16","v":"Die Lehrperson regt mit differenzierten Fragestellungen zur Reflexion und Dokumentation des eigenen Lernens und Problemlösens an."}]
["Bilanzierende Bewertung"," +++"," ++","+"," -"," --"," ---","?","Bemerkungen"]

{"sheet":"LP 13","index":14,"n_rows":14,"n_cols":9,"rows_kept":14,"cut":false,"hidden":false,"merged":[[6,5,6,8],[1,5,1,8],[2,5,2,8],[3,5,3,8],[4,5,4,8],[5,5,5,8],[13,0,14,0],[7,5,7,8],[8,5,8,8],[9,5,9,8],[10,5,10,8],[11,5,11,8],[12,5,12,8]]}
["LP 13"]
[{"$f":"Auswertungsraster!A5","v":"Indikatoren"},"ja","teils","nein","?","Bemerkungen"]
[{"$f":"Auswertungsraster!A6","v":"Die Lehrperson motiviert die Schülerinnen und Schüler für die Aufgaben/Fragen/Problemstellungen. "}]
[{"$f":"Auswertungsraster!A7","v":"Die Lehrperson schafft herausfordernde Problemstellungen, die Schülerinnen und Schüler zum Denken und Handeln anregen."}]
[{"$f":"Auswertungsraster!A8","v":"Die Lehrperson knüpft im Unterricht an das Vorwissen der Schülerinnen und Schüler an."}]
[{"$f":"Auswertungsraster!A9","v":"Die Lehrperson schafft Situationen, die den Lerndialog unter Schülerinnen und Schülern anregen und lassen Raum für das Lernen von- und miteinander."}]
[{"$f":"Auswertungsraster!A10","v":"Die Lehrperson gibt den Schülerinnen und Schülern die Kompetenz-/Lernziele rechtzeitig, schriftlich und verständlich bekannt."}]
[{"$f":"Auswertungsraster!A11","v":"Die Lehrperson schafft während dem Lernprozess systematisch Bezüge sowohl zu den Kompetenzzielen als auch zu den Lernzielen einzelner Etappen."}]
[{"$f":"Auswertungsraster!A12","v":"Die Lehrperson stellt bewusst enge, halboffene oder offene Aufgaben, je nach Stand im Lernprozess beziehungsweise in Bezug zum Kompetenzaufbau."}]
[{"$f":"Auswertungsraster!A13","v":"Die Lehrperson gestaltet den Unterricht so, dass Schülerinnen und Schüler Erfolgserlebnisse erfahren."}]
[{"$f":"Auswertungsraster!A14","v":"Die Lehrperson gibt den Schülerinnen und Schülern ein individuelles Feedback zum Lernprozess und/oder Lernprodukt aufgrund von Beobachtungen und/oder formativen Beurteilungsformen."}]
[{"$f":"Auswertungsraster!A15","v":"Die Lehrperson gestaltet den Unterricht so, dass sich die Schülerinnen und Schüler gegenseitig konstruktive Rückmeldungen geben können (Peerfeedback)."}]
[{"$f":"Auswertungsraster!A16","v":"Die Lehrperson regt mit differenzierten Fragestellungen zur Reflexion und Dokumentation des eigenen Lernens und Problemlösens an."}]
["Bilanzierende Bewertung"," +++"," ++","+"," -"," --"," ---","?","Bemerkungen"]

{"sheet":"LP 14","index":15,"n_rows":14,"n_cols":9,"rows_kept":14,"cut":false,"hidden":false,"merged":[[6,5,6,8],[1,5,1,8],[2,5,2,8],[3,5,3,8],[4,5,4,8],[5,5,5,8],[13,0,14,0],[7,5,7,8],[8,5,8,8],[9,5,9,8],[10,5,10,8],[11,5,11,8],[12,5,12,8]]}
["LP 14"]
[{"$f":"Auswertungsraster!A5","v":"Indikatoren"},"ja","teils","nein","?","Bemerkungen"]
[{"$f":"Auswertungsraster!A6","v":"Die Lehrperson motiviert die Schülerinnen und Schüler für die Aufgaben/Fragen/Problemstellungen. "}]
[{"$f":"Auswertungsraster!A7","v":"Die Lehrperson schafft herausfordernde Problemstellungen, die Schülerinnen und Schüler zum Denken und Handeln anregen."}]
[{"$f":"Auswertungsraster!A8","v":"Die Lehrperson knüpft im Unterricht an das Vorwissen der Schülerinnen und Schüler an."}]
[{"$f":"Auswertungsraster!A9","v":"Die Lehrperson schafft Situationen, die den Lerndialog unter Schülerinnen und Schülern anregen und lassen Raum für das Lernen von- und miteinander."}]
[{"$f":"Auswertungsraster!A10","v":"Die Lehrperson gibt den Schülerinnen und Schülern die Kompetenz-/Lernziele rechtzeitig, schriftlich und verständlich bekannt."}]
[{"$f":"Auswertungsraster!A11","v":"Die Lehrperson schafft während dem Lernprozess systematisch Bezüge sowohl zu den Kompetenzzielen als auch zu den Lernzielen einzelner Etappen."}]
[{"$f":"Auswertungsraster!A12","v":"Die Lehrperson stellt bewusst enge, halboffene oder offene Aufgaben, je nach Stand im Lernprozess beziehungsweise in Bezug zum Kompetenzaufbau."}]
[{"$f":"Auswertungsraster!A13","v":"Die Lehrperson gestaltet den Unterricht so, dass Schülerinnen und Schüler Erfolgserlebnisse erfahren."}]
[{"$f":"Auswertungsraster!A14","v":"Die Lehrperson gibt den Schülerinnen und Schülern ein individuelles Feedback zum Lernprozess und/oder Lernprodukt aufgrund von Beobachtungen und/oder formativen Beurteilungsformen."}]
[{"$f":"Auswertungsraster!A15","v":"Die Lehrperson gestaltet den Unterricht so, dass sich die Schülerinnen und Schüler gegenseitig konstruktive Rückmeldungen geben können (Peerfeedback)."}]
[{"$f":"Auswertungsraster!A16","v":"Die Lehrperson regt mit differenzierten Fragestellungen zur Reflexion und Dokumentation des eigenen Lernens und Problemlösens an."}]
["Bilanzierende Bewertung"," +++"," ++","+"," -"," --"," ---","?","Bemerkungen"]

{"sheet":"LP 15","index":16,"n_rows":14,"n_cols":9,"rows_kept":14,"cut":false,"hidden":false,"merged":[[6,5,6,8],[1,5,1,8],[2,5,2,8],[3,5,3,8],[4,5,4,8],[5,5,5,8],[13,0,14,0],[7,5,7,8],[8,5,8,8],[9,5,9,8],[10,5,10,8],[11,5,11,8],[12,5,12,8]]}
["LP 15"]
[{"$f":"Auswertungsraster!A5","v":"Indikatoren"},"ja","teils","nein","?","Bemerkungen"]
[{"$f":"Auswertungsraster!A6","v":"Die Lehrperson motiviert die Schülerinnen und Schüler für die Aufgaben/Fragen/Problemstellungen. "}]
[{"$f":"Auswertungsraster!A7","v":"Die Lehrperson schafft herausfordernde Problemstellungen, die Schülerinnen und Schüler zum Denken und Handeln anregen."}]
[{"$f":"Auswertungsraster!A8","v":"Die Lehrperson knüpft im Unterricht an das Vorwissen der Schülerinnen und Schüler an."}]
[{"$f":"Auswertungsraster!A9","v":"Die Lehrperson schafft Situationen, die den Lerndialog unter Schülerinnen und Schülern anregen und lassen Raum für das Lernen von- und miteinander."}]
[{"$f":"Auswertungsraster!A10","v":"Die Lehrperson gibt den Schülerinnen und Schülern die Kompetenz-/Lernziele rechtzeitig, schriftlich und verständlich bekannt."}]
[{"$f":"Auswertungsraster!A11","v":"Die Lehrperson schafft während dem Lernprozess systematisch Bezüge sowohl zu den Kompetenzzielen als auch zu den Lernzielen einzelner Etappen."}]
[{"$f":"Auswertungsraster!A12","v":"Die Lehrperson stellt bewusst enge, halboffene oder offene Aufgaben, je nach Stand im Lernprozess beziehungsweise in Bezug zum Kompetenzaufbau."}]
[{"$f":"Auswertungsraster!A13","v":"Die Lehrperson gestaltet den Unterricht so, dass Schülerinnen und Schüler Erfolgserlebnisse erfahren."}]
[{"$f":"Auswertungsraster!A14","v":"Die Lehrperson gibt den Schülerinnen und Schülern ein individuelles Feedback zum Lernprozess und/oder Lernprodukt aufgrund von Beobachtungen und/oder formativen Beurteilungsformen."}]
[{"$f":"Auswertungsraster!A15","v":"Die Lehrperson gestaltet den Unterricht so, dass sich die Schülerinnen und Schüler gegenseitig konstruktive Rückmeldungen geben können (Peerfeedback)."}]
[{"$f":"Auswertungsraster!A16","v":"Die Lehrperson regt mit differenzierten Fragestellungen zur Reflexion und Dokumentation des eigenen Lernens und Problemlösens an."}]
["Bilanzierende Bewertung"," +++"," ++","+"," -"," --"," ---","?","Bemerkungen"]